Cogmind - Beta 15 *** ADVENTURER MODE // 2025.06.27 @ 21:07:11 Player: JakeTheIceMan Result: Destroyed by H-88 Terminator with KE Penetrator Performance ------------- Evolutions (8) 4000 Regions Visited (14) 2800 Robots Destroyed (129) 645 Value Destroyed (6166) 6166 Prototype IDs (11) 220 Alien Tech Used (0) 0 Bonus (4118) 4118 TOTAL SCORE: 17949 Bonus ------- High Alert Combat Kills 430 Follower Combat Kills 2056 Met Imprinter 300 Was Imprinted 300 Built Enhanced Grunts 300 A7 Reached Mainframe 300 Met R17 at Cetus 500 Friendly Fire -68 Cogmind --------- Core Integrity 0/1450 Matter 280/300 Energy 100/100 System Corruption 0% Temperature Cool (0) Movement Core (50) Location -2/Research Parts ------- > --- POWER (3) -------- (None) > --- PROPULSION (7) --- (None) > --- UTILITY (9) ------ Improved Weapon Cycler > --- WEAPON (4) ------- (None) > --- INVENTORY (5) ---- (None) Peak State ------------ > --- POWER ------------ Light Antimatter Reactor Particle Reactor Micro Antimatter Reactor > --- PROPULSION ------- Cooled Gravmag System Improved Antigrav System Improved Antigrav System Improved Gyrokinetic Inverter Cooled Antigrav System Cooled Antigrav System Cooled Antigrav System > --- UTILITY ---------- Advanced Heat Sink Advanced Heat Sink Medium Storage Unit Advanced Weight Redist. System Advanced Target Analyzer Improved Weapon Cycler Advanced Reaction Control System Improved Force Field Long-range Tractor Beam > --- WEAPON ----------- Advanced Variable Charge Gun Enhanced Hardcell Cannon Enhanced Hardcell Cannon > --- INVENTORY -------- Particle Reactor Cooled Antigrav System Matter Compressor IFF Parser Remote Force Field Tiamat Missile Launcher [Rating: 155] Favorites ----------- Power Light Angular Momentum Engine Engine Light Angular Momentum Engine Power Core Fusion Compressor Reactor Light Antimatter Reactor Propulsion Airjet Wheel Compact Wheel Hover Unit Airjet Utility Improved Weapon Cycler Device Improved Weapon Cycler Storage Medium Storage Unit Processor Advanced Targeting Computer Hackware Hacking Suite Protection Hardened Light Armor Plating Weapon Improved Light Cannon Energy Gun Advanced Variable Charge Gun Energy Cannon Heavy Plasma Cannon Ballistic Gun KE Penetrator Ballistic Cannon Improved Light Cannon Launcher Rocket Launcher Special Weapon Molecular Deconstructor Impact Weapon Heavy Mace Slashing Weapon Axe Build | -11 -10 -9 -9 -7 -6 -6 -5 -5 -5 -4 -4 -4 -3 -2 ------- Run | Yrd Mat Mat Min Zio Pro Fac Fac Ext Cet Fac Upp Upp Res Res Slots Evolved 16 | . . 2 . . . 6 2 . . 2 . . 2 2 Power 2 | . . . . . . 1 . . . . . . . 1 Propulsion 5 | . . 1 . . . 2 . . . 1 . . 1 . Utility 7 | . . 1 . . . 2 2 . . 1 . . . 1 Weapon 2 | . . . . . . 1 . . . . . . 1 . Parts Attached 134 | 8 5 7 1 1 3 28 29 9 3 5 1 . 19 15 Power 18 | 2 . 1 . . 1 3 3 1 . 1 . . 2 4 Engine 8 | 2 . 1 . . . 2 2 1 . . . . . . Core 3 | . . . . . 1 1 1 . . . . . . . Reactor 7 | . . . . . . . . . . 1 . . 2 4 Propulsion 33 | 2 2 4 . . 1 6 5 1 . 1 . . 8 3 Treads . | . . . . . . . . . . . . . . . Leg . | . . . . . . . . . . . . . . . Wheel 5 | 2 2 1 . . . . . . . . . . . . Hover 28 | . . 3 . . 1 6 5 1 . 1 . . 8 3 Flight . | . . . . . . . . . . . . . . . Utility 47 | 1 1 2 . . 1 11 15 4 1 3 . . 4 4 Device 28 | . . 1 . . . 5 10 3 1 1 . . 3 4 Storage 3 | 1 . . . . . . 2 . . . . . . . Processor 8 | . 1 . . . . 5 1 . . . . . 1 . Hackware 1 | . . . . . . . 1 . . . . . . . Protection 7 | . . 1 . . 1 1 1 1 . 2 . . . . Artifact . | . . . . . . . . . . . . . . . Weapon 36 | 3 2 . 1 1 . 8 6 3 2 . 1 . 5 4 Energy Gun 7 | . . . . . . 1 2 1 1 . . . 2 . Energy Cannon 3 | . . . . . . 2 1 . . . . . . . Ballistic Gun 9 | 3 . . . 1 . 1 1 1 1 . . . . 1 Ballistic Cannon 9 | . 2 . 1 . . 1 1 1 . . . . 1 2 Launcher 3 | . . . . . . 1 . . . . . . 2 . Special Weapon 1 | . . . . . . . . . . . 1 . . . Impact Weapon 1 | . . . . . . . 1 . . . . . . . Slashing Weapon 3 | . . . . . . 2 . . . . . . . 1 Piercing Weapon . | . . . . . . . . . . . . . . . Special Melee Weapon . | . . . . . . . . . . . . . . . Unidentified Prototypes 9 | . . 1 . . . 1 2 . 2 . 1 . 2 . Parts Lost 68 | . . . . . 2 16 7 3 2 . . . 9 29 Power 9 | . . . . . . 2 . 1 1 . . . 1 4 Propulsion 17 | . . . . . 1 5 1 . . . . . 1 9 Utility 27 | . . . . . 1 4 5 2 1 . . . 5 9 Weapon 15 | . . . . . . 5 1 . . . . . 2 7 Highest Loss Streak 13 | . . . . . 2 6 4 1 2 . . . 4 13 To Critical Strikes 1 | . . . . . . 1 . . . . . . . . Average Backups 6 | 1 6 6 5 6 5 5 7 6 6 9 9 8 7 5 Power . | . 1 . 1 1 1 . 1 . . . 1 1 1 . Propulsion 1 | . 2 2 1 1 . . 1 1 1 1 2 2 2 1 Utility 2 | . . . 1 1 2 3 2 2 2 2 2 2 2 2 Weapon 2 | . 2 3 2 2 2 1 1 2 2 5 3 3 1 1 Tool/Special . | . . . . . . . . . . . . . . . Unused Backups 20 | . 1 7 . . 2 . 1 1 . . 1 . 5 2 Power 4 | . . 3 . . 1 . . . . . . . . . Propulsion 7 | . 1 3 . . . . 1 . . . . . 2 . Utility 4 | . . . . . 1 . . . . . . . 1 2 Weapon 5 | . . 1 . . . . . 1 . . 1 . 2 . Tool/Special . | . . . . . . . . . . . . . . . Average Slot Usage (%) 86 | . 86 97 100 100 99 71 86 88 87 86 92 89 86 68 Engine 6 | . 14 10 11 11 2 5 7 8 5 5 5 5 1 . Core 1 | . . . . . 8 2 2 1 4 2 . . . . Reactor 1 | . . . . . . . . . . 2 5 5 7 9 Wheel 1 | . 28 12 . . . . . . . . . . . . Hover 23 | . . 20 33 33 32 17 22 23 23 23 26 26 28 21 Device 16 | . . 2 11 11 11 12 20 23 21 24 26 26 22 18 Storage 6 | . 14 11 11 11 11 5 4 5 5 5 5 5 4 3 Processor 4 | . 1 8 . . . 6 6 5 5 5 5 5 2 3 Protection 4 | . . 8 11 11 10 2 3 . . 2 5 5 3 . Energy Gun 2 | . . . . . . 2 3 5 4 5 5 5 5 2 Energy Cannon 1 | . . . . . . 2 3 . . . . . . . Ballistic Gun 3 | . 12 . . 9 11 1 1 1 4 7 7 . . . Ballistic Cannon 7 | . 15 22 22 12 11 5 1 7 6 2 . . 2 4 Peak Build Rating 155 | 6 10 23 21 24 26 56 88 90 88 108 110 110 147 155 Average Rating 62 | 3 7 17 21 23 25 39 75 82 82 98 107 110 129 108 On Entrance 57 | . 6 10 21 21 24 26 53 88 80 88 107 110 110 122 Naked Turns . | . . . . . . . . . . . . . . . Heaviest Build 108 | 11 16 24 24 24 24 52 64 77 60 79 72 67 89 108 Greatest Support 106 | 20 32 48 24 24 24 48 56 64 64 75 75 75 102 106 Greatest Overweight (x) 10 | . . 2 . . 1 8 1 1 . 1 . . 1 10 Average Overweight (x) . | . . . . . . . . . . . . . . . Largest Inventory Capacity 10 | 8 8 8 8 8 8 8 10 10 10 10 10 10 10 10 Average Capacity 8 | 6 8 8 8 8 8 7 9 10 10 10 10 10 10 9 Most Carried 10 | 4 8 8 6 8 8 8 10 10 10 10 10 8 10 9 Average Carried 6 | 1 6 6 5 7 6 5 7 6 6 9 9 8 7 5 Final Capacity 10 | 8 8 8 8 8 8 5 10 10 10 10 10 10 10 5 Final Carried 10 | 2 7 6 5 8 6 4 8 6 9 10 8 8 7 . Class Distribution -------------------- 41% | Mutant 19% | Scavenger-Gunner 10% | Scavenger-Tank 10% | Scavenger-Mutant 7% | Gunner 4% | Hacker-Mutant 3% | Scavenger-Sprinter Dominant Class ---------------- Mutant | -10/Materials Mutant | -9/Materials Mutant | -9/Mines Mutant | -7/Zion Mutant | -6/Proximity Caves Mutant | -6/Factory Scavenger-Mutant | -5/Factory Scavenger-Gunner | -5/Extension Scavenger-Gunner | -5/Cetus Scavenger-Gunner | -4/Factory Scavenger-Tank | -4/Upper Caves Scavenger-Tank | -4/Upper Caves Scavenger-Sprinter | -3/Research Scavenger-Gunner | -2/Research Resources | -11 -10 -9 -9 -7 -6 -6 -5 -5 -5 -4 -4 -4 -3 -2 ----------- Run | Yrd Mat Mat Min Zio Pro Fac Fac Ext Cet Fac Upp Upp Res Res Matter Collected 5309 | 200 186 494 22 58 209 599 1220 353 246 238 97 . 574 813 Remotely 498 | . . . . . . . . . . . . . . 498 Salvage Created 5367 | . 117 438 17 . 412 372 1515 547 219 449 . . 707 574 Parts 242 | . 5 41 6 . 12 23 53 17 10 18 . . 28 29 Haulers Intercepted 2 | . . 1 . . . . . . . . . . 1 . Recyclers Shooed 9 | . . . . . . . 3 1 . . . . 1 4 Parts Field Recycled . | . . . . . . . . . . . . . . . Retrieved Matter . | . . . . . . . . . . . . . . . Parts Self-Destructed 15 | . . . . . 14 . . . . . 1 . . . Prevented 4 | . . . . . 4 . . . . . . . . . Kills | -11 -10 -9 -9 -7 -6 -6 -5 -5 -5 -4 -4 -4 -3 -2 ------- Run | Yrd Mat Mat Min Zio Pro Fac Fac Ext Cet Fac Upp Upp Res Res Combat Hostiles Destroyed 92 | . 4 14 4 . 6 10 15 6 4 5 . . 14 10 Guns 27 | . 1 . . . 2 4 4 4 2 3 . . 5 2 Cannons 51 | . 3 14 4 . 4 4 6 2 2 2 . . 3 7 AOE 8 | . . . . . . 2 1 . . . . . 4 1 Classes Destroyed 16 | . 1 5 . . . 4 1 . . . . . 4 1 Worker 2 | . . . . . . . . . . . . . . 2 Builder 5 | . . . . . . 2 1 . . 1 . . . 1 Tunneler 1 | . . . . . . . . . . . . . 1 . Hauler 2 | . . 1 . . . . . . . . . . 1 . Recycler 7 | . . . . . . . 4 1 . . . . 1 1 Operator 4 | . . 3 . . . . 1 . . . . . . . Watcher 16 | . . 5 . . . . 2 2 2 2 . . 3 . Swarmer 11 | . . 5 4 . 1 . . . . . . . 1 . Cutter 5 | . . . . . . . . . . . . . 3 2 Grunt 35 | . 4 2 . . 4 3 8 3 . 4 . . 3 4 Brawler 1 | . . . . . . 1 . . . . . . . . Sentry 19 | . . 7 . . 1 1 4 3 . 1 . . 1 1 Hunter 3 | . . . . . . 2 . . . . . . . 1 Programmer 12 | . . . . . . 3 3 . . . . . 4 2 Heavy 1 | . . . . . . . . . . . . . 1 . Behemoth 1 | . . . . . . . . . . . . . 1 . Cetus Guard 4 | . . . . . . . . . 4 . . . . . Best Kill Streak 8 | . 1 5 4 . 3 3 2 2 4 3 . . 8 4 Combat Bots Only 5 | . 1 5 4 . 3 3 2 2 3 2 . . 5 3 Max Kills in Single Turn 2 | . 1 1 1 . 1 2 1 1 1 2 . . 2 1 Gunslinging . | . . . . . . . . . . . . . . . Exploded 2 | . . . . . . 1 1 . . . . . 2 1 Melee . | . . . . . . . . . . . . . . . Uniques/NPCs Destroyed . | . . . . . . . . . . . . . . . Combat | -11 -10 -9 -9 -7 -6 -6 -5 -5 -5 -4 -4 -4 -3 -2 -------- Run | Yrd Mat Mat Min Zio Pro Fac Fac Ext Cet Fac Upp Upp Res Res Hostile Shots Fired 1007 | . 5 60 13 . 74 117 165 91 20 38 7 . 109 308 Missed 353 | . 2 21 3 . 36 44 56 27 10 16 2 . 41 95 Hits 654 | . 3 39 10 . 38 73 109 64 10 22 5 . 68 213 Melee 12 | . . . . . . 4 . . . . . . 4 4 Projectile 642 | . 3 39 10 . 38 69 109 64 10 22 5 . 64 209 AOE 5 | . . . . . . . . . . . . . 3 2 Critical Strikes 37 | . . 4 . . . 6 5 4 3 1 1 . 5 8 Part Disruptions 2 | . . . . . . . 1 . . . . . 1 . Damage Taken 11473 | . 32 374 60 . 344 1861 1733 829 191 270 38 . 1550 4191 Core 2486 | . 23 71 . . 58 305 275 153 21 12 8 . 110 1450 Absorbed by Shields 1001 | . . . . . . . 190 319 80 64 42 . 99 207 Ignored by Resistances 3292 | . 10 111 20 . 108 377 525 311 75 93 22 . 441 1199 Regen/Repaired (Parts) 267 | . . . . . . 229 . . . . . . . 38 Core Remaining (%) 80 | 100 90 . . . 67 64 . . 55 . . 98 91 . Volleys Fired 396 | . 9 52 6 . 27 42 82 35 13 23 6 . 67 34 Largest 4 | . 2 2 2 . 2 3 3 3 3 3 3 . 4 3 Hottest 260 | . 66 66 66 . 66 198 203 175 160 162 148 . 260 196 Shots Fired 824 | . 18 104 12 . 54 83 134 80 38 64 16 . 151 70 Gun 367 | . 8 . . . 27 19 58 60 17 52 15 . 84 27 Cannon 421 | . 10 104 12 . 27 57 76 20 21 12 . . 42 40 Launcher 16 | . . . . . . 7 . . . . . . 6 3 Special 20 | . . . . . . . . . . . 1 . 19 . Kinetic 484 | . 18 104 12 . 54 44 33 45 34 46 10 . 42 42 Thermal 286 | . . . . . . 32 83 35 4 18 5 . 84 25 Explosive 16 | . . . . . . 7 . . . . . . 6 3 Electromagnetic 18 | . . . . . . . 18 . . . . . . . Robot Hit Streak 40 | . 5 12 4 . 10 10 40 36 32 18 7 . 17 16 Robot Miss Streak 6 | . 2 3 2 . 5 4 1 2 3 2 2 . 6 3 Penetration Max 1 | . . . . . . . . 1 1 1 . . . . Secondary Targets 3 | . . . . . . . . . . 2 . . 1 . Max Gunslinging Chain 1 | . . . . . . . . . . 1 . . 1 . Shots Hit Robots 613 | . 13 70 7 . 36 59 121 58 29 51 8 . 106 55 Core Hits 241 | . 6 26 4 . 14 34 41 19 14 21 . . 33 29 Critical Kills 3 | . . . . . . . 2 . . 1 . . . . Critical Parts Destroyed 6 | . . . . . . . 1 . 1 4 . . . . Critical Strikes 25 | . 1 4 . . . 1 3 2 3 5 . . . 6 Burn 1 | . . . . . . . . 1 . . . . . . Meltdown 2 | . . . . . . . 2 . . . . . . . Destroy 7 | . . . . . . . 1 . 1 5 . . . . Blast 15 | . 1 4 . . . 1 . 1 2 . . . . 6 Melee Attacks 9 | . . . . . . 6 2 . . . . . . 1 Impact 2 | . . . . . . . 2 . . . . . . . Slashing 7 | . . . . . . 6 . . . . . . . 1 Piercing . | . . . . . . . . . . . . . . . Sneak Attacks . | . . . . . . . . . . . . . . . Combat Hostiles . | . . . . . . . . . . . . . . . Follow-up Attacks . | . . . . . . . . . . . . . . . Damage Inflicted 18896 | . 209 1505 154 . 844 1784 3316 1640 889 1494 304 . 4123 2634 Guns 7819 | . 49 . . . 525 368 1196 1304 330 1198 304 . 1934 611 Cannons 9104 | . 160 1505 154 . 319 938 1900 336 559 296 . . 1415 1522 Explosions 1901 | . . . . . . 478 220 . . . . . 723 480 Melee 21 | . . . . . . . . . . . . . . 21 Ramming 51 | . . . . . . . . . . . . . 51 . Kinetic 10054 | . 209 1505 154 . 844 556 720 986 803 1088 216 . 1415 1558 Thermal 6770 | . . . . . . 750 2277 654 86 406 88 . 1934 575 Explosive 1646 | . . . . . . 443 . . . . . . 723 480 Electromagnetic 354 | . . . . . . 35 319 . . . . . . . Impact . | . . . . . . . . . . . . . . . Slashing 21 | . . . . . . . . . . . . . . 21 Piercing . | . . . . . . . . . . . . . . . Highest Corruption 7 | . . . . . . 7 6 . . . 2 2 3 . Average Corruption 3 | . . . . . . 4 3 . . . 1 2 2 . Corruption Purged 6 | . . . . . . . 6 . . . . . . . Corruption Blocked . | . . . . . . . . . . . . . . . Effects 40 | . . . . . . 28 8 . . . 2 1 1 . Message Errors 7 | . . . . . . 6 . . . . . 1 . . Matter Fused 9 | . . . . . . 6 2 . . . . . 1 . Heat Flow Errors 4 | . . . . . . 4 . . . . . . . . Energy Discharges 6 | . . . . . . 2 2 . . . 2 . . . Data Loss (minor) 3 | . . . . . . 2 1 . . . . . . . Data Loss (major) 4 | . . . . . . 3 1 . . . . . . . Misfires 3 | . . . . . . 2 1 . . . . . . . Alerts 2 | . . . . . . 2 . . . . . . . . Weapon Failures 2 | . . . . . . 1 1 . . . . . . . Overload Shots . | . . . . . . . . . . . . . . . Overflow Damage 543 | . . 28 1 . . 62 234 . . . . . 152 66 Projectiles 404 | . . 28 1 . . 62 101 . . . . . 150 62 Explosions 139 | . . . . . . . 133 . . . . . 2 4 Melee . | . . . . . . . . . . . . . . . Knockbacks 46 | . 3 9 3 . 3 5 3 1 . 2 . . 13 4 Impact 1 | . . . . . . . . . . . . . 1 . Kinetic 43 | . 3 9 3 . 3 5 3 1 . 2 . . 10 4 Secondary 2 | . . . . . . . . . . . . . 2 . Self-Inflicted Damage 220 | . . . . . . 20 120 . . . . . 80 . Shots 5 | . . . . . . 1 3 . . . . . 1 . Rammed 2 | . . . . . . . . . . . . . 2 . Targets Rammed 2 | . . . . . . . . . . . . . 2 . Kicked . | . . . . . . . . . . . . . . . Crushed . | . . . . . . . . . . . . . . . Highest Temperature 595 | . 12 174 126 . 237 501 486 311 300 162 51 . 595 524 Average Temperature 120 | . 6 50 65 . 87 159 164 74 132 62 35 . 150 149 Received Heat Transfer 1513 | . 21 171 . . 150 141 350 191 . 66 . . 208 215 Effects 58 | . . . . . . 17 17 . 1 . . . 15 8 Shutdowns 22 | . . . . . . 3 10 . . . . . 5 4 Energy Bleed 5 | . . . . . . . 1 . 1 . . . 3 . Interference 12 | . . . . . . 5 4 . . . . . 3 . Matter Decay 5 | . . . . . . 1 . . . . . . 1 3 Short Circuit 4 | . . . . . . 1 1 . . . . . 1 1 Damage (minor) 3 | . . . . . . . 1 . . . . . 2 . Damage (major) 7 | . . . . . . 7 . . . . . . . . Siege Activations . | . . . . . . . . . . . . . . . Martial Activations . | . . . . . . . . . . . . . . . Shielding Activations . | . . . . . . . . . . . . . . . Robots Disrupted . | . . . . . . . . . . . . . . . Combat Hostiles . | . . . . . . . . . . . . . . . Robots Corrupted . | . . . . . . . . . . . . . . . Combat Hostiles . | . . . . . . . . . . . . . . . Parts Fried 1 | . . . . . . . . . 1 . . . . . Impact Corruptions . | . . . . . . . . . . . . . . . Robots Melted 4 | . . . . . . . 4 . . . . . . . Combat Hostiles 4 | . . . . . . . 4 . . . . . . . Parts Melted 16 | . . . . . . 1 15 . . . . . . . Heat Transferred 9480 | . . . . . . 1120 3679 1073 111 463 74 . 2183 777 Parts Sabotaged . | . . . . . . . . . . . . . . . Parts Stolen . | . . . . . . . . . . . . . . . Parts Stripped . | . . . . . . . . . . . . . . . Power Chain Reactions 2 | . . . . . . 1 1 . . . . . . . Alert | -11 -10 -9 -9 -7 -6 -6 -5 -5 -5 -4 -4 -4 -3 -2 ------- Run | Yrd Mat Mat Min Zio Pro Fac Fac Ext Cet Fac Upp Upp Res Res Maximum Alert Level 3 | . . 1 . . . 3 . . . 3 . . 3 2 Low Security (%) 69 | 100 100 81 100 . . 44 100 100 100 37 . . 26 . Level 1 9 | . . 18 . . . 9 . . . 5 . . 7 71 Level 2 17 | . . . . . . 35 . . . 37 . . 61 28 Level 3 3 | . . . . . . 10 . . . 19 . . 5 . Level 4 . | . . . . . . . . . . . . . . . Level 5 . | . . . . . . . . . . . . . . . High Security . | . . . . . . . . . . . . . . . Max Security . | . . . . . . . . . . . . . . . Peak Influence 783 | . 35 266 108 . . 763 191 75 133 783 . . 748 495 Initial 763 | . . 5 78 . . 763 1 40 . 59 . . 86 361 Average 195 | . 12 105 70 . . 347 88 23 27 398 . . 431 381 Influence Increases 6137 | . 115 491 90 . 354 1235 669 382 249 914 37 . 1112 489 Destroy 0b10 Robot/C 2660 | . 80 280 80 . 260 220 300 220 160 300 20 . 540 200 Destroy 0b10 Robot/NC 210 | . . 45 . . 10 15 40 15 10 20 . . 35 20 Destroy Leader 604 | . 20 112 10 . 30 72 84 24 . 64 10 . 128 50 Allied During Kill 430 | . . . . . 54 4 . 22 51 156 7 . 136 . Successful Hack 55 | . . 8 . . . 3 . 24 8 . . . . 12 Disable Machine 225 | . . 9 . . . 54 63 . . 72 . . 27 . Anti-Garrison Action 150 | . . . . . . . . . . 150 . . . . Destroy Structure 738 | . . 7 . . . 57 152 32 20 152 . . 186 132 Advance Influence 750 | . . . . . . 750 . . . . . . . . Partial Spotted 75 | . . 15 . . . 30 . . . . . . 15 15 Lose Combat Pursuer 240 | . 15 15 . . . 30 30 45 . . . . 45 60 Influence Decreases 5767 | . 100 269 229 98 330 1253 579 478 126 254 562 112 520 857 Entered New Map 1264 | . . 10 159 98 . 11 5 56 . 64 352 72 60 377 Time Decay 3262 | . 100 259 70 . 270 742 504 351 86 150 210 40 290 190 Search Patrol Dispatched 300 | . . . . . . 300 . . . . . . . . Lost Part 660 | . . . . . 20 160 70 10 20 . . . 90 290 Lost Ally 281 | . . . . . 40 40 . 61 20 40 . . 80 . Squads Dispatched 32 | . 1 2 . . . 5 6 1 . 4 . . 8 5 Investigation 9 | . 1 1 . . . 2 . 1 . 1 . . 2 1 Extermination 9 | . . . . . . 3 2 . . . . . 3 1 Reinforcement 8 | . . 1 . . . . 1 . . . . . 3 3 Assault 2 | . . . . . . . . . . 2 . . . . Garrison 4 | . . . . . . . 3 . . 1 . . . . Intercept . | . . . . . . . . . . . . . . . Searches Triggered 2 | . . . . . . 2 . . . . . . . . Construction Impeded 1 | . . . . . . . . . . . . . . 1 Haulers Reinforced 1 | . . . . . . . . . . . . . 1 . Active Scanning Responses . | . . . . . . . . . . . . . . . Cargo Convoy Interrupts . | . . . . . . . . . . . . . . . Stealth | -11 -10 -9 -9 -7 -6 -6 -5 -5 -5 -4 -4 -4 -3 -2 --------- Run | Yrd Mat Mat Min Zio Pro Fac Fac Ext Cet Fac Upp Upp Res Res Distress Signals 9 | . . . . . 1 2 1 2 2 . . . . 1 Communications Jammed 22 | . . . . . . 22 . . . . . . . . Distress Signals 22 | . . . . . . 22 . . . . . . . . Times Spotted 205 | . 7 26 4 . 15 24 21 16 9 23 1 . 38 21 Peak Tracking Total 9 | . 4 4 4 . 4 9 3 4 5 5 1 . 7 7 Tactical Retreats 15 | . 1 1 . . . 2 2 3 . . . . 2 4 Traps | -11 -10 -9 -9 -7 -6 -6 -5 -5 -5 -4 -4 -4 -3 -2 ------- Run | Yrd Mat Mat Min Zio Pro Fac Fac Ext Cet Fac Upp Upp Res Res Traps Triggered 6 | . 1 1 . . . 1 . . . 1 . . 2 . Indirectly . | . . . . . . . . . . . . . . . Trap Hack Attempts . | . . . . . . . . . . . . . . . Triggered . | . . . . . . . . . . . . . . . Disarmed . | . . . . . . . . . . . . . . . Reprogrammed . | . . . . . . . . . . . . . . . Reused . | . . . . . . . . . . . . . . . Traps Extracted . | . . . . . . . . . . . . . . . Installed . | . . . . . . . . . . . . . . . Triggered . | . . . . . . . . . . . . . . . Machines | -11 -10 -9 -9 -7 -6 -6 -5 -5 -5 -4 -4 -4 -3 -2 ---------- Run | Yrd Mat Mat Min Zio Pro Fac Fac Ext Cet Fac Upp Upp Res Res Machines Disabled 29 | . . 1 . . . 6 7 1 . 9 2 . 3 . Max in Single Turn 5 | . . 1 . . . 5 5 1 . 4 2 . 1 . Garrison Access 1 | . . . . . . . . . . 1 . . . . Machines Repaired . | . . . . . . . . . . . . . . . Machines Dismantled . | . . . . . . . . . . . . . . . Machines Sabotaged . | . . . . . . . . . . . . . . . Overloaded Fab Kills . | . . . . . . . . . . . . . . . Hacking | -11 -10 -9 -9 -7 -6 -6 -5 -5 -5 -4 -4 -4 -3 -2 --------- Run | Yrd Mat Mat Min Zio Pro Fac Fac Ext Cet Fac Upp Upp Res Res Machines Accessed 17 | . 1 5 . . . 1 . 6 1 2 . . . 1 Terminals 13 | . 1 5 . . . . . 6 1 . . . . . Fabricators . | . . . . . . . . . . . . . . . Repair Stations 3 | . . . . . . 1 . . . 1 . . . 1 Recycling Units . | . . . . . . . . . . . . . . . Scanalyzers . | . . . . . . . . . . . . . . . Garrison Access 1 | . . . . . . . . . . 1 . . . . Total Hacks 36 | . 3 8 . . . 5 . 13 2 2 . . . 3 Successful 17 | . 1 3 . . . 4 . 6 1 . . . . 2 Failed 19 | . 2 5 . . . 1 . 7 1 2 . . . 1 Catastrophic 3 | . . 1 . . . . . . . 2 . . . . Database Lockouts . | . . . . . . . . . . . . . . . Manual 10 | . . . . . . . . . 5 . 1 . 4 . Terminals 26 | . 3 8 . . . . . 13 2 . . . . . Fabricators . | . . . . . . . . . . . . . . . Repair Stations 9 | . . . . . . 5 . . . 1 . . . 3 Recycling Units . | . . . . . . . . . . . . . . . Scanalyzers . | . . . . . . . . . . . . . . . Garrison Access 1 | . . . . . . . . . . 1 . . . . Terminal Hacks 11 | . 1 3 . . . . . 6 1 . . . . . Prototype ID Bank 1 | . . 1 . . . . . . . . . . . . Open Door 7 | . . . . . . . . 6 1 . . . . . Transport Status 1 | . . 1 . . . . . . . . . . . . Hauler Manifests 1 | . 1 . . . . . . . . . . . . . Zone Layout 1 | . . 1 . . . . . . . . . . . . Fabricator Hacks . | . . . . . . . . . . . . . . . Repair Station Hacks 6 | . . . . . . 4 . . . . . . . 2 Scan Component 3 | . . . . . . 2 . . . . . . . 1 Repair 3 | . . . . . . 2 . . . . . . . 1 Recycling Unit Hacks . | . . . . . . . . . . . . . . . Scanalyzer . | . . . . . . . . . . . . . . . Garrison Access Hacks . | . . . . . . . . . . . . . . . Unauthorized Hacks . | . . . . . . . . . . . . . . . Terminals . | . . . . . . . . . . . . . . . Fabricators . | . . . . . . . . . . . . . . . Repair Stations . | . . . . . . . . . . . . . . . Recycling Units . | . . . . . . . . . . . . . . . Scanalyzers . | . . . . . . . . . . . . . . . Garrison Access . | . . . . . . . . . . . . . . . Data Cores Recovered 4 | . . 3 . . . . 1 . . . . . . . Used . | . . . . . . . . . . . . . . . Hacking Detections 15 | . 1 3 . . . 1 . 5 2 2 . . . 1 Full Trace Events 4 | . . 1 . . . 1 . 1 . . . . . 1 Feedback Events . | . . . . . . . . . . . . . . . Feedback Blocked . | . . . . . . . . . . . . . . . Robot Schematics Acquired 2 | . . . . 2 . . . . . . . . . . Robots Built . | . . . . . . . . . . . . . . . Authchips . | . . . . . . . . . . . . . . . Time . | . . . . . . . . . . . . . . . Total Robot Build Rating . | . . . . . . . . . . . . . . . Part Schematics Acquired 15 | . . . . 15 . . . . . . . . . . Parts Built . | . . . . . . . . . . . . . . . Authchips . | . . . . . . . . . . . . . . . Time . | . . . . . . . . . . . . . . . Total Part Build Rating . | . . . . . . . . . . . . . . . Parts Repaired 3 | . . . . . . 2 . . . . . . . 1 Time 104 | . . . . . . 76 . . . . . . . 28 Parts Recycled . | . . . . . . . . . . . . . . . Recycled Matter . | . . . . . . . . . . . . . . . Retrieved Matter . | . . . . . . . . . . . . . . . Retrieved Components . | . . . . . . . . . . . . . . . Parts Scanalyzed . | . . . . . . . . . . . . . . . Part Schematics Acquired . | . . . . . . . . . . . . . . . Parts Damaged . | . . . . . . . . . . . . . . . Bothacking | -11 -10 -9 -9 -7 -6 -6 -5 -5 -5 -4 -4 -4 -3 -2 ------------ Run | Yrd Mat Mat Min Zio Pro Fac Fac Ext Cet Fac Upp Upp Res Res Used RIF Installer . | . . . . . . . . . . . . . . . Robots Hacked . | . . . . . . . . . . . . . . . Non-combat . | . . . . . . . . . . . . . . . Combat . | . . . . . . . . . . . . . . . Robot Hacks Applied . | . . . . . . . . . . . . . . . Relay Couplers Released 3 | . . . . . . . 3 . . . . . . . Programmers 3 | . . . . . . . 3 . . . . . . . Fabnet Peak Effective % . | . . . . . . . . . . . . . . . Robots Rewired . | . . . . . . . . . . . . . . . Allies Hacked . | . . . . . . . . . . . . . . . Hacks Repelled . | . . . . . . . . . . . . . . . Allies | -11 -10 -9 -9 -7 -6 -6 -5 -5 -5 -4 -4 -4 -3 -2 -------- Run | Yrd Mat Mat Min Zio Pro Fac Fac Ext Cet Fac Upp Upp Res Res Total Allies 18 | . . . . 4 . . . 7 5 . . . 2 . Largest Group 7 | . . . . 4 4 2 . 7 7 7 2 2 4 . Highest-Rated Group 658 | . . . . 156 156 76 . 311 658 644 192 192 384 . Highest-Rated Ally 159 | . . . . 42 42 39 . 159 153 153 96 96 96 . Total Orders 15 | . . . . . . 3 7 4 . 1 . . . . ROAM 1 | . . . . . . . 1 . . . . . . . GUARD 1 | . . . . . . . . . . 1 . . . . EXPLORE 10 | . . . . . . 2 5 3 . . . . . . RETURN 3 | . . . . . . 1 1 1 . . . . . . Ally Attacks 237 | . . . . . 39 6 . 31 29 74 7 . 51 . Total Damage 8215 | . . . . . 796 119 . 1301 908 3000 184 . 1907 . Kills 47 | . . . . . 8 2 . 5 4 13 1 . 14 . Allies Corrupted . | . . . . . . . . . . . . . . . Allies Melted . | . . . . . . . . . . . . . . . Intel | -11 -10 -9 -9 -7 -6 -6 -5 -5 -5 -4 -4 -4 -3 -2 ------- Run | Yrd Mat Mat Min Zio Pro Fac Fac Ext Cet Fac Upp Upp Res Res Active Infowar (turns) 3265 | . 22 620 159 645 553 1186 71 . . . . . . 9 Optics 524 | . 22 473 . . . 29 . . . . . . . . Sensors 2327 | . . 147 159 645 553 823 . . . . . . . . IFF 9 | . . . . . . . . . . . . . . 9 Terrain 240 | . . . . . . 169 71 . . . . . . . Jamming 1082 | . . . . . . 1082 . . . . . . . . Robot Analysis Total . | . . . . . . . . . . . . . . . Derelict Logs Recovered 2 | . . . 1 . . . . . . . 1 . . . Drone Launches 14 | . . . . . . 3 4 7 . . . . . . Drone Recoveries 9 | . . . . . . 3 3 3 . . . . . . Exploration | -11 -10 -9 -9 -7 -6 -6 -5 -5 -5 -4 -4 -4 -3 -2 ------------- Run | Yrd Mat Mat Min Zio Pro Fac Fac Ext Cet Fac Upp Upp Res Res Turns Passed 8168 | 45 294 621 159 645 553 1504 1157 1041 357 310 422 91 582 387 Spaces Moved 7569 | 36 243 657 245 895 482 1017 943 880 261 324 444 96 710 336 Core 47 | 3 . . . . . 41 . . . . . . . 3 Treads . | . . . . . . . . . . . . . . . Legs . | . . . . . . . . . . . . . . . Wheels 452 | 33 243 176 . . . . . . . . . . . . Hover 7070 | . . 481 245 895 482 976 943 880 261 324 444 96 710 333 Flight . | . . . . . . . . . . . . . . . Fastest Speed 24 | 50 80 52 52 52 52 42 48 48 50 46 46 46 24 25 Average Speed 63 | 77 97 65 52 52 52 83 78 76 50 55 46 46 38 59 Slowest Speed 550 | 80 100 190 52 52 116 450 147 107 50 107 46 46 86 550 Overloaded Moves 75 | . . . . . . . . . . . . . 50 25 Propulsion Burnouts . | . . . . . . . . . . . . . . . Robots Hopped . | . . . . . . . . . . . . . . . Potential Cave-ins 1 | . . . . . . 1 . . . . . . . . Cave-ins Triggered 2 | . . . . . . 2 . . . . . . . . Exploration Rate (%) 45 | 4 51 64 74 87 66 20 23 75 88 13 62 17 22 11 Regions Visited 14 Branch Regions 7 Pre-discovered Areas . | . . . . . . . . . . . . . . . Known Exits Taken 1 | . . . . . . . . . . . 1 . . . Unknown Exits Taken 13 | 1 1 1 1 1 1 1 1 1 1 1 . 1 1 . Scrap Searched 5 | . . . 1 3 . . . . . . 1 . . . Spaces Dug 15 | . . . . . . 6 1 7 . . . . 1 . Terrain Destroyed 418 | . . 6 . . 1 62 97 17 3 58 4 . 99 71 Melee 7 | . . . . . . 6 1 . . . . . . . Projectile 76 | . . 6 . . 1 6 5 17 3 10 4 . 16 8 AOE 335 | . . . . . . 50 91 . . 48 . . 83 63 Terrain Rammed . | . . . . . . . . . . . . . . . Walls Destroyed . | . . . . . . . . . . . . . . . Machines Disabled . | . . . . . . . . . . . . . . . Actions | -11 -10 -9 -9 -7 -6 -6 -5 -5 -5 -4 -4 -4 -3 -2 --------- Run | Yrd Mat Mat Min Zio Pro Fac Fac Ext Cet Fac Upp Upp Res Res Total 10283 | 51 285 749 264 1073 726 1588 1270 1207 465 419 653 142 918 473 Wait 1884 | . 9 4 12 175 207 441 159 263 178 46 198 47 79 66 Move 7554 | 35 242 656 244 894 481 1015 942 879 260 323 443 95 709 336 Hop . | . . . . . . . . . . . . . . . Pick Up 148 | 8 13 14 . 3 4 25 25 9 7 5 1 . 23 11 Fast Attach 13 | . . 1 . . . 5 6 . . . . . 1 . Attach 103 | 6 1 4 . . 2 27 15 8 2 4 1 . 16 17 Detach 18 | . . . . . . 7 6 2 . 1 . . . 2 Swap 57 | 2 4 4 1 1 1 9 17 4 3 2 . . 6 3 Drop 85 | . 7 14 1 . 4 10 16 7 2 2 4 . 15 3 Fire 396 | . 9 52 6 . 27 42 82 35 13 23 6 . 67 34 Melee 9 | . . . . . . 6 2 . . . . . . 1 Ram 2 | . . . . . . . . . . . . . 2 . Kick . | . . . . . . . . . . . . . . . Crush . | . . . . . . . . . . . . . . . Escape Stasis 14 | . . . . . . 1 . . . 13 . . . . Rewire . | . . . . . . . . . . . . . . . Trap . | . . . . . . . . . . . . . . . Miscellaneous . | . . . . . . . . . . . . . . . Route ------- -11/Scrapyard -10/Materials (discovered 2 exits: *Mat / [*Min]) -9/Materials (discovered 4 exits: [*Mat x2] / [*Min] / [*Sto]) -9/Mines -7/Zion -6/Proximity Caves -6/Factory (discovered 2 exits: *Fac / [*Low]) -5/Factory -5/Extension (discovered 3 exits: *Fac x2 / *Cet) -5/Cetus (discovered 3 exits: *Fac x2 / [*Arc]) -4/Factory -4/Upper Caves -4/Upper Caves -3/Research (discovered 2 exits: *Res x2) -2/Research History --------- Turn | Location | Event 2 | -11/Scrapyard | Met Revision 17 12 | -11/Scrapyard | Discovered new exit (range 16) 46 | -11/Scrapyard | Entered Materials 47 | -10/Materials | Met a group of wandering Federalists 132 | -10/Materials | Discovered new exit (range 13) 280 | -10/Materials | Discovered new exit (range 16) 316 | -10/Materials | Build established: Mutant 340 | -10/Materials | Entered another Materials area 340 | -9/Materials | Evolved 2 slots: Propulsion x1, Utility x1 585 | -9/Materials | Discovered new exit (range 13) 783 | -9/Materials | Discovered new exit (range 18) 876 | -9/Materials | Discovered new exit (range 8) 943 | -9/Materials | Discovered new exit (range 10) 961 | -9/Materials | Entered Mines 969 | -9/Mines | Met a Derelict bent on vengeance 1014 | -9/Mines | Found a Scrap Suit stashed away for nefarious purposes 1118 | -9/Mines | A Derelict revealed a hidden shortcut to a safe place 1120 | -9/Mines | Entered Zion 1267 | -7/Zion | Learned Factory emergency access door positions 1342 | -7/Zion | Met Imprinter 1351 | -7/Zion | Imprinted 1353 | -7/Zion | Declared Zion's savior 1523 | -7/Zion | Given A8's code to call for help 1705 | -7/Zion | Discovered new exit (range 16) 1765 | -7/Zion | Entered Proximity Caves 1765 | -6/Proximity Caves | Accompanied by 4 allies 1853 | -6/Proximity Caves | Spotter reported a threat 1906 | -6/Proximity Caves | Spotter reported a threat 2000 | -6/Proximity Caves | Spotter reported a threat 2080 | -6/Proximity Caves | Spotter reported a threat 2087 | -6/Proximity Caves | Attracted the attention of an 0b10 checkpoint 2250 | -6/Proximity Caves | Discovered new exit (range 12) 2278 | -6/Proximity Caves | Spotter reported a threat 2318 | -6/Proximity Caves | Entered Factory 2318 | -6/Factory | Accompanied by 2 allies 2318 | -6/Factory | Evolved 6 slots: Power x1, Propulsion x2, Utility x2, Weapon x1 2603 | -6/Factory | Discovered new exit (range 5) 2668 | -6/Factory | Search patrols dispatched 2859 | -6/Factory | Lost 6 parts (1p3n1u1w) 3018 | -6/Factory | Search patrols dispatched 3104 | -6/Factory | Crushed by falling debris 3141 | -6/Factory | Crushed by falling debris 3172 | -6/Factory | Lost 4 parts (1n1u2w) 3359 | -6/Factory | Spotted B-75 Beast 3707 | -6/Factory | Discovered new exit (range 17) 3776 | -6/Factory | Repaired Cmb. Airjet 3804 | -6/Factory | Repaired Sml. Storage Unit 3822 | -6/Factory | Entered another Factory area 3822 | -5/Factory | Evolved 2 slots: Utility x2 4337 | -5/Factory | Garrison activated, responded to threat 4486 | -5/Factory | Lost 4 parts (1n2u1w) 4963 | -5/Factory | Discovered new exit (range 16) 4979 | -5/Factory | Entered Extension 4994 | -5/Extension | Build established: Scavenger-Mutant 5320 | -5/Extension | Spotted B-75 Beast 5408 | -5/Extension | Spotted B-75 Beast 5530 | -5/Extension | Rescued a captive Derelict 5531 | -5/Extension | Rescued a captive Derelict 5539 | -5/Extension | Rescued a captive Derelict 5540 | -5/Extension | Rescued a captive Derelict 5577 | -5/Extension | Rescued a captive Derelict 5583 | -5/Extension | Rescued A7 5602 | -5/Extension | Rescued a captive Derelict 5651 | -5/Extension | Build established: Scavenger-Gunner 5812 | -5/Extension | Allies destroyed B-75 Beast 5824 | -5/Extension | Allies destroyed B-75 Beast 5838 | -5/Extension | Lost 4 allies 5850 | -5/Extension | Discovered new exit (range 4) 5959 | -5/Extension | Discovered new exit (range 16) 5960 | -5/Extension | Discovered new exit (range 15) 6020 | -5/Extension | Entered Cetus 6020 | -5/Cetus | Accompanied by 3 allies (A7) 6025 | -5/Cetus | Acquired a Cetus Manufacturing Module code from A7 6027 | -5/Cetus | Spotted Cetus Guard 6028 | -5/Cetus | Spotted Cetus Guard 6030 | -5/Cetus | Spotted Cetus Guard 6032 | -5/Cetus | Destroyed Cetus Guard 6033 | -5/Cetus | Spotted Cetus Guard 6042 | -5/Cetus | Allies destroyed Cetus Guard 6043 | -5/Cetus | Destroyed Cetus Guard 6049 | -5/Cetus | Destroyed Cetus Guard 6087 | -5/Cetus | Discovered new exit (range 16) 6144 | -5/Cetus | Started Cetus Manufacturing Module 6169 | -5/Cetus | Manufactured an Enhanced Grunt 6194 | -5/Cetus | Manufactured an Enhanced Grunt 6219 | -5/Cetus | Manufactured an Enhanced Grunt 6244 | -5/Cetus | Manufactured an Enhanced Grunt 6269 | -5/Cetus | Manufactured an Enhanced Grunt 6282 | -5/Cetus | Escorted A7 to Cetus Mainframe 6290 | -5/Cetus | Discovered new exit (range 15) 6299 | -5/Cetus | Spotted Cetus Guard 6314 | -5/Cetus | Spotted Cetus Guard 6320 | -5/Cetus | Destroyed Cetus Guard 6326 | -5/Cetus | Allies destroyed Cetus Guard 6327 | -5/Cetus | Spotted Cetus Guard 6327 | -5/Cetus | Spotted Cetus Guard 6334 | -5/Cetus | Allies destroyed Cetus Guard 6335 | -5/Cetus | Allies destroyed Cetus Guard 6341 | -5/Cetus | Discovered new exit (range 15) 6357 | -5/Cetus | Scared off Revision 17 6377 | -5/Cetus | Entered Factory 6377 | -4/Factory | Accompanied by 7 allies (A7) 6377 | -4/Factory | Evolved 2 slots: Propulsion x1, Utility x1 6384 | -4/Factory | Received a hacking code to weaken MAIN.C 6450 | -4/Factory | Spotted B-86 Titan 6467 | -4/Factory | Allies destroyed B-86 Titan 6491 | -4/Factory | Garrison activated, responded to threat 6627 | -4/Factory | First assault squad dispatched 6662 | -4/Factory | Discovered new exit (range 16) 6687 | -4/Factory | Entered Upper Caves 6687 | -4/Upper Caves | Accompanied by 2 allies 6835 | -4/Upper Caves | Build established: Scavenger-Tank 6972 | -4/Upper Caves | Acquired the password to a Derelict Tinkerer's latest research 6979 | -4/Upper Caves | Found Prototype Special Weapon 6981 | -4/Upper Caves | Identified Molecular Deconstructor 7047 | -4/Upper Caves | Identified exit to Upper Caves 7109 | -4/Upper Caves | Entered another Upper Caves area 7109 | -4/Upper Caves | Accompanied by 2 allies 7146 | -4/Upper Caves | Discovered new exit (range 8) 7200 | -4/Upper Caves | Entered Research 7200 | -3/Research | Accompanied by 2 allies 7200 | -3/Research | Evolved 2 slots: Propulsion x1, Weapon x1 7312 | -3/Research | Enhanced Grunt warped into view, answering call for help 7312 | -3/Research | Enhanced Grunt warped into view, answering call for help 7398 | -3/Research | Spotted B-86 Titan 7429 | -3/Research | Destroyed B-86 Titan 7459 | -3/Research | Lost 4 allies 7544 | -3/Research | Discovered new exit (range 14) 7594 | -3/Research | Lost 4 parts (1p1n2u) 7756 | -3/Research | Discovered new exit (range 8) 7782 | -3/Research | Entered another Research area 7782 | -2/Research | Evolved 2 slots: Power x1, Utility x1 7907 | -2/Research | Lost 3 parts (1n1u1w) 7918 | -2/Research | Repaired Imp. Weapon Cycler 8097 | -2/Research | Lost 13 parts (2p4n5u2w) 8148 | -2/Research | Core integrity fell below 50% 8163 | -2/Research | Core integrity fell below 20% 8169 | -2/Research | Destroyed by H-88 Terminator with KE Penetrator Last Messages --------------- R-10 Processor collects Remote Force Field. Penetrated by Slug. Slug penetrates Subatomic Condenser. Penetrated by Slug. Slug penetrates Subatomic Condenser. Slug penetrates Wall. Penetrated by Slug. H-88 Terminator destroyed. Penetrated by Slug. IFF Parser destroyed. Subatomic Condenser collapses. Penetrated by Slug. R-10 Processor destroyed. Penetrated by Slug. Slug penetrates Subatomic Condenser. Penetrated by Slug. Rnf. Quantum Reactor destroyed. Penetrated by Slug. R-10 Processor collects Biometal Leg. Penetrated by Slug. Map ----- +----------------------------------------------------+ | ???????????????????????????????????????????????? | | ???????????????????????????????????????????????? | | ???????????????????????????????????????????????? | | ???????????????????????????????????????????????? | | ????????????????? ?????????????????????????????? | | ????????????????? ?????????????????????????????? | | ????????????????? ?????????????????????????????? | | ???############## ?????????????????????????????? | | ???# # ?????????????????????????????? | | ???# # ?????????????????????????????? | | ???# # ?????????????????????????????? | | ???# # #????????????????????????????? | | ???# """" # #????????????????????????????? | | #??# """" # #????????????????????????????? | | #### """" # #????????????????????????????? | | " """" # #????????????????????????????? | | #### # ###############??????????????? | | #??# # ## #??????????????? | | #??# # ## #??????????????? | | #??# # ## """ #??????????????? | | #??#######+###### ## ""R" #??????????????? | | ######## h/ "" " #??????????????? | | # # #??????????????? | | # + R [= ##?????????????? | | """ # """ # """h """ #?????????????? | | """ # ""F # "" @[""" #??????????????? | | """ ?# "" # h!== """ #??????????????? | | # """ # h%* #??????????????? | | # """ # Y! #??????????????? | | """# #######;######??????????????? | | Y"# #??????##???????????????????? | | """# #???????????????????????????? | | ?# #???????????????????????????? | | # #???????????????????????????? | | #???##?# #???????????????????????????? | | ??????? ? #???????????????????????????? | | ??????? ???? #???????????????????????????? | | ????????????? ?????????????????????????????? | | ??????????????????????????????????????????????? | | ??????????????????????????????????????????????? | | ?????????????????????????????????????????????? | | ????????????????????????????????????????????? | | ????????????????????????????????????????????? | | ????????????????????????????????????????????? | | ????????????????????????????????????????????? | | ????????????????????????????????????????????? | | #+?????????????????????????????????????????????? | | ???????????????????????????????????????????????? | | ???????????????????????????????????????????????? | | ???????????????????????????????????????????????? | +----------------------------------------------------+ Best States ------------- Heat Dissipation 87 Energy Generation 67 Energy Capacity 650 Matter Stores 300 Matter Capacity 300 Sight Range 18 Robot Scan Range 15 Terrain Scan Range 20 Terrain Scan Density 110 Jamming Range 12 Power Amplification 20 Additional Mass Support 9 Armor Coverage 225 Resistance: KI 20 Resistance: TH 35 Resistance: EX 20 Resistance: EM 20 Resistance: I 20 Resistance: S 20 Resistance: P 20 Weapon Cycling 20 Evasion (%) 72 Targeting Accuracy 8 Target Analysis 8 Core Analysis 6 Kinecelleration 40 Offensive Hacking 20 Item Schematics ----------------- Lgt. Fission Core | -7/Zion | Archive Hvy. Rocket Launcher | -7/Zion | Archive Energy Well | -7/Zion | Archive Hvy. Ion Cannon | -7/Zion | Archive Arm. Medium Treads | -7/Zion | Archive Imp. Focal Shield | -7/Zion | Archive Adv. Assault Cannon | -7/Zion | Archive Imp. Trap Scanner | -7/Zion | Archive Dynamic Insulation System | -7/Zion | Archive Plasma Rifle | -7/Zion | Archive Imp. Reaction Control System | -7/Zion | Archive Xenon Bombardment Thruster | -7/Zion | Archive Imp. Cooling System | -7/Zion | Archive Flexi-carbon Leg | -7/Zion | Archive Arm. Huge Wheel | -7/Zion | Archive Robot Schematics ------------------ B-48 Gladiator | -7/Zion | Archive M-14 Sweeper | -7/Zion | Archive Fabricated ------------ Nothing Repaired ---------- Cmb. Airjet | 24% | -6/Factory Sml. Storage Unit | 12% | -6/Factory Imp. Weapon Cycler | 5% | -2/Research Alien Tech Used ----------------- None Achievements -------------- Can't Catch Me Dangerous Findings Deconstruction Help From High Places Hey, That's Mine! I'm Back, Baby! Leap Before You Look Main Advantage Omniscient Cartographer Prison Break Project G-00 Respectable Loadout Revising The Future Robot Respite Rockin' Loadout Shopping List Significant Disruption The More The Merrier The One Total Silence Unlikely Earthworm Use The Force Challenges ------------ None Game ------ Seed NetworkWeaponKinecellerator Manual? 0 Play Time 03:59:26 Cumulative 7.1 hours Start 2025.06.27 @ 02:02:38 End 2025.06.27 @ 21:07:11 Sessions 2 Manual Loads 0 Difficulty Adventurer Special Mode None Game No. 5 Rogue 0 Adventurer 5 Explorer 0 Win Type - Total 0 Types 0/0/0/0/0/0/0/0/0/0 Lore% 1 Gallery% 11 Achievement% 17 Wizard Run 0 Options --------- Layout 1 ASCII 0 Keyboard 0 Movement Mouse Keybinds 0 Fullscreen 1 Font 24/Smallcaps Map View 50x35 Zoom Use 0% Tactical HUD 0 Map Filters NONE Filters NONE Steam 1 RUN: 08246b41-0323-4576-b484-a25255e2acf8